bitfinex-derivatives/quotes_BTCF0:USTF0_20250722
["timestamp","ask_amount","ask_price","bid_price","bid_amount"]
[1753196718794,1.28359653,119250.0,119240.0,0.02371911]
[1753196719195,1.63829796,119250.0,119240.0,0.02371911]
[1753196719794,0.2563886,119240.0,119230.0,0.63592958]
[1753196720088,1.11262003,119240.0,119230.0,0.65931368]
[1753196720287,1.11262003,119240.0,119230.0,0.73400368]
[1753196721389,1.48399689,119240.0,119230.0,0.65931368]
[1753196722290,1.48399689,119240.0,119230.0,0.68893486]
[1753196722488,1.48399689,119240.0,119230.0,0.93127746]
[1753196722688,1.12929546,119240.0,119230.0,0.79621486]
[1753196722888,1.12929546,119240.0,119230.0,0.76362486]
[1753196723291,1.48399689,119240.0,119230.0,0.74141528]
[1753196723789,1.12929546,119240.0,119230.0,0.93062788]
[1753196723991,0.77459403,119240.0,119230.0,1.02401788]
[1753196724191,1.12929546,119240.0,119230.0,1.02401788]
[1753196724385,1.12929546,119240.0,119230.0,0.85636528]
[1753196724592,1.12929546,119240.0,119230.0,1.02401788]
[1753196726091,1.12929546,119240.0,119230.0,0.85636528]
[1753196726590,1.12929546,119240.0,119230.0,0.82337528]
[1753196727096,1.12929546,119240.0,119230.0,0.05300528]
[1753196727295,1.48399689,119240.0,119230.0,0.66624528]
[1753196728093,1.12929546,119240.0,119230.0,0.94117788]
[1753196728294,1.12929546,119240.0,119230.0,0.99054788]
[1753196728491,1.12929546,119240.0,119230.0,0.85588528]
[1753196729196,1.12929546,119240.0,119230.0,0.90033123]
[1753196729396,1.12929546,119240.0,119230.0,1.06798383]
[1753196729691,0.77459403,119240.0,119230.0,1.06798383]
[1753196729896,1.12929546,119240.0,119230.0,1.11737383]
[1753196731197,1.12929546,119240.0,119230.0,0.94972123]
[1753196731398,1.12929546,119240.0,119230.0,0.90033123]
[1753196731789,1.48399689,119240.0,119230.0,0.86734123]
[1753196731991,1.48399689,119240.0,119230.0,0.09745123]
[1753196732199,1.48399689,119240.0,119230.0,0.05300528]
[1753196732493,0.77459403,119240.0,119230.0,0.41029788]
[1753196732697,1.12929546,119240.0,119230.0,0.29203528]
[1753196732997,1.12929546,119240.0,119230.0,0.20965528]
[1753196733192,1.48399689,119240.0,119230.0,0.12769528]
[1753196733398,1.48399689,119240.0,119230.0,0.05300528]
[1753196733792,1.48599689,119240.0,119230.0,0.05300528]
[1753196734494,1.48599689,119240.0,119230.0,0.12769528]
[1753196734698,1.13129546,119240.0,119230.0,0.20965528]
[1753196734901,1.48599689,119240.0,119230.0,0.20965528]
[1753196735100,1.48599689,119240.0,119230.0,0.16028528]
[1753196735287,1.48699689,119240.0,119230.0,0.12769528]
[1753196736494,1.48699689,119240.0,119230.0,0.05300528]
[1753196736799,1.48699689,119240.0,119230.0,8e-08]
[1753196737100,1.48699689,119240.0,119230.0,0.02227362]
[1753196737290,0.77759403,119240.0,119230.0,2e-08]
[1753196737689,1.48699689,119240.0,119230.0,2e-08]
[1753196738698,0.3171926,119230.0,119220.0,5e-08]
[1753196738898,0.4466063,119210.0,119200.0,0.05963531]
[1753196739105,2.18834261,119210.0,119200.0,0.05963531]
[1753196739300,2.10427861,119210.0,119200.0,0.05963531]
[1753196739492,0.3627748,119200.0,119190.0,0.02694481]
[1753196739802,0.3627748,119200.0,119160.0,0.2190373]
[1753196739803,0.362817,119170.0,119160.0,0.2652873]
[1753196739996,1.36504838,119170.0,119160.0,0.1932273]
[1753196740191,1.36504838,119170.0,119160.0,0.1719873]
[1753196740700,0.3628311,119160.0,119150.0,0.10518001]
[1753196740900,2.06229824,119160.0,119150.0,0.11774445]
[1753196741100,0.3628451,119150.0,119140.0,0.17262085]
[1753196741297,1.07834653,119150.0,119140.0,0.10518001]
[1753196741496,1.7400192,119140.0,119130.0,0.10518001]
[1753196741698,3.11358063,119140.0,119130.0,0.10518001]
[1753196741902,0.3628733,119130.0,119120.0,0.10406]
[1753196742106,1.07837473,119130.0,119120.0,0.10406]
[1753196742400,1.44160383,119130.0,119120.0,0.12642001]
[1753196742608,1.44160383,119130.0,119120.0,0.10518001]
[1753196743001,1.44160383,119130.0,119120.0,0.09226582]
[1753196743202,0.3629015,119110.0,119100.0,0.02124]
[1753196743509,0.3629155,119100.0,119090.0,0.10406]
[1753196743701,1.14048259,119100.0,119090.0,0.10406]
[1753196743908,0.7237155,119100.0,119090.0,0.10406]
[1753196744108,1.14048259,119100.0,119090.0,0.10406]
[1753196744306,1.14048259,119100.0,119090.0,0.23033]
[1753196744607,1.14048259,119100.0,119090.0,0.3981796]
[1753196744807,1.14048259,119100.0,119090.0,0.23033]
[1753196745002,0.7237155,119100.0,119090.0,0.23433]
[1753196745200,1.14048259,119100.0,119090.0,0.4021796]
[1753196745505,1.14048259,119100.0,119090.0,0.23433]
[1753196745709,1.14048259,119100.0,119090.0,0.18728]
[1753196746207,1.55724968,119100.0,119090.0,0.006]
[1753196747011,0.7237155,119100.0,119090.0,0.006]
[1753196747201,1.55724968,119100.0,119090.0,0.006]
[1753196747514,1.75316259,119100.0,119090.0,0.006]
[1753196748010,2.16992968,119100.0,119090.0,0.006]
[1753196748410,1.75316259,119100.0,119090.0,0.006]
[1753196748610,1.75316259,119100.0,119090.0,0.11006]
[1753196748611,1.14048259,119100.0,119090.0,0.11006]
[1753196749001,1.14048259,119100.0,119090.0,0.18410917]
[1753196749206,1.06824259,119100.0,119090.0,1.09102887]
[1753196749407,0.6514755,119100.0,119090.0,1.0169797]
[1753196749608,0.70744259,119100.0,119090.0,1.07619241]
[1753196749909,0.70744259,119100.0,119090.0,1.43699554]
[1753196749910,0.2446755,119100.0,119090.0,1.43699554]
[1753196750207,0.1678355,119100.0,119090.0,1.43699554]
[1753196750406,0.3145917,119110.0,119100.0,0.3981655]
[1753196750616,0.2724335,119110.0,119100.0,0.7589655]
[1753196750904,0.2268935,119110.0,119100.0,0.7589655]
[1753196751712,0.1849361,119110.0,119100.0,0.7589655]
[1753196752604,0.1849361,119110.0,119100.0,0.7609655]
[1753196753309,0.1849361,119110.0,119100.0,1.43294922]
[1753196753613,0.71423669,119120.0,119110.0,0.3769115]
[1753196753911,0.2517296,119120.0,119110.0,0.3981515]
[1753196754108,0.2972696,119120.0,119110.0,0.3981515]
[1753196755507,0.2517296,119120.0,119110.0,0.3981515]
[1753196755711,0.1678215,119120.0,119110.0,0.3981515]
[1753196756110,0.58458859,119120.0,119110.0,1.0119115]
[1753196756312,0.66142859,119120.0,119110.0,1.0119115]
[1753196756511,0.66142859,119120.0,119110.0,0.3981515]
[1753196756707,0.70742859,119120.0,119110.0,1.0139115]
[1753196756908,0.77966859,119120.0,119110.0,0.4011515]
[1753196757113,0.77966859,119120.0,119110.0,1.0139115]
[1753196757314,0.70742859,119120.0,119110.0,1.0139115]
[1753196757804,0.70742859,119120.0,119110.0,0.4001515]
[1753196758007,0.77966859,119120.0,119110.0,1.0129115]
[1753196758309,0.77966859,119120.0,119110.0,0.23233]
[1753196758514,0.77966859,119120.0,119110.0,0.84709]
[1753196758712,1.14046859,119120.0,119110.0,0.02524]
[1753196759016,1.14046859,119120.0,119110.0,0.75445092]
[1753196759316,1.14046859,119120.0,119110.0,0.76521092]
[1753196759906,0.7237015,119120.0,119110.0,0.93303242]
[1753196760112,1.14046859,119120.0,119110.0,0.98138242]
[1753196760312,0.77966859,119120.0,119110.0,1.0139115]
[1753196760513,0.70742859,119120.0,119110.0,1.0139115]
[1753196760816,1.14046859,119120.0,119110.0,1.0139115]
[1753196761116,1.14046859,119120.0,119110.0,0.84609]
[1753196761316,1.14046859,119120.0,119110.0,0.79704]
[1753196761518,1.14046859,119120.0,119110.0,0.79804]
[1753196761817,1.14046859,119120.0,119110.0,0.9658615]
[1753196762115,1.14046859,119120.0,119110.0,0.79904]
[1753196762316,1.14046859,119120.0,119110.0,0.3541015]
[1753196762509,1.14046859,119120.0,119110.0,0.9668615]
[1753196762908,1.14046859,119120.0,119110.0,1.0139115]
[1753196763114,1.14046859,119120.0,119110.0,0.9668615]
[1753196763315,1.14046859,119120.0,119110.0,0.9658615]
[1753196763516,1.14046859,119120.0,119110.0,0.9638615]
[1753196763711,1.14046859,119120.0,119110.0,1.0119115]
[1753196763911,1.14046859,119120.0,119110.0,0.84409]
[1753196764313,0.7237015,119120.0,119110.0,0.84409]
[1753196764520,1.14046859,119120.0,119110.0,0.84409]
[1753196765321,1.14046859,119120.0,119110.0,0.90327416]
[1753196765918,1.14046859,119120.0,119110.0,0.84409]
[1753196766219,1.14046859,119120.0,119110.0,0.90327416]
[1753196766421,0.6514615,119120.0,119110.0,1.07109566]
[1753196766722,1.06822859,119120.0,119110.0,0.90327416]
[1753196767217,1.06822859,119120.0,119110.0,0.84409]
[1753196767429,1.06822859,119120.0,119110.0,1.07131027]
[1753196767816,0.6514615,119120.0,119110.0,0.90340887]
[1753196768024,1.14046859,119120.0,119110.0,0.90340887]
[1753196768524,0.6529715,119120.0,119110.0,0.90340887]
[1753196768722,1.06973859,119120.0,119110.0,0.90340887]
[1753196769525,0.31753292,119130.0,119110.0,1.2887174]
[1753196769716,0.35948422,119130.0,119120.0,0.8248537]
[1753196769917,0.35928422,119130.0,119120.0,1.0766937]
[1753196770119,0.35928422,119130.0,119120.0,1.4374937]
[1753196770421,0.35928422,119130.0,119120.0,1.3780073]
[1753196770621,0.22699242,119130.0,119120.0,1.3780073]
[1753196770818,0.22799242,119130.0,119120.0,1.3780073]
[1753196771024,0.22899242,119130.0,119120.0,1.3780073]
[1753196771917,0.77542951,119130.0,119120.0,1.0172073]
[1753196772224,0.35866242,119130.0,119120.0,1.3780073]
[1753196772425,0.30849242,119130.0,119120.0,0.7653673]
[1753196772628,0.30849242,119130.0,119120.0,1.3779673]
[1753196773019,0.30749242,119130.0,119120.0,1.3779673]
[1753196773330,0.18504222,119130.0,119120.0,1.79573439]
[1753196773718,0.18504222,119130.0,119120.0,1.3789673]
[1753196777130,0.18504222,119130.0,119120.0,1.79573439]
[1753196777343,0.01723872,119130.0,119120.0,1.79573439]
[1753196777630,0.0002,119140.0,119130.0,0.3832132]
[1753196777829,0.2691385,119150.0,119140.0,0.4045392]
[1753196778040,0.2689385,119150.0,119140.0,1.43735323]
[1753196778223,0.2689385,119150.0,119140.0,1.44571045]
[1753196778632,0.2689385,119150.0,119140.0,1.50480315]
[1753196779433,1.25060559,119150.0,119140.0,0.91656992]
[1753196779732,0.88980559,119150.0,119140.0,0.91656992]
[1753196779928,0.88980559,119150.0,119140.0,0.30420992]
[1753196780134,0.88980559,119150.0,119140.0,0.91656992]
[1753196780323,0.89180559,119150.0,119140.0,0.91656992]
[1753196780524,1.25260559,119150.0,119140.0,0.86681992]
[1753196780936,1.25060559,119150.0,119140.0,0.86681992]
[1753196781128,1.25060559,119150.0,119140.0,0.86781992]
[1753196781330,1.25060559,119150.0,119140.0,0.91756992]
[1753196781525,0.88980559,119150.0,119140.0,1.08534912]
[1753196782130,0.81537559,119150.0,119140.0,1.14492315]
[1753196782740,0.332671,119150.0,119140.0,1.50572315]
[1753196783034,0.251661,119150.0,119140.0,1.50572315]
[1753196783234,0.57420406,119160.0,119140.0,1.63155105]
[1753196783433,0.35631057,119160.0,119150.0,0.4045251]
[1753196783630,0.32500057,119160.0,119150.0,0.4045251]
[1753196783936,0.31673758,119160.0,119150.0,0.7653251]
[1753196784339,0.31673758,119160.0,119150.0,0.4045251]
[1753196784535,0.31773758,119160.0,119150.0,0.4045251]
[1753196784735,0.31873758,119160.0,119150.0,0.4045251]
[1753196784935,0.18646788,119160.0,119150.0,0.82489913]
[1753196785148,0.18646788,119160.0,119150.0,0.46409913]
[1753196785440,0.23485788,119160.0,119150.0,0.7653251]
[1753196785639,0.18646788,119160.0,119150.0,0.82489913]
[1753196785945,0.18646788,119160.0,119150.0,0.7653251]
[1753196786338,0.23385788,119160.0,119150.0,0.7653251]
[1753196786537,0.23485788,119160.0,119150.0,0.7653251]
[1753196786739,0.18646788,119160.0,119150.0,0.7653251]
[1753196787749,0.23485788,119160.0,119150.0,0.7653251]
[1753196788141,0.18646788,119160.0,119150.0,0.7653251]
[1753196788343,0.18646788,119160.0,119150.0,0.82489913]
[1753196788952,0.23485788,119160.0,119150.0,0.82489913]
[1753196789442,0.26596788,119160.0,119150.0,0.82489913]
[1753196789647,0.18646788,119160.0,119150.0,0.88086622]
[1753196790042,0.18646788,119160.0,119150.0,1.24166622]
[1753196790240,0.01870428,119160.0,119150.0,1.40951422]
[1753196790442,0.1679484,119170.0,119160.0,0.404511]
[1753196790637,0.1677484,119170.0,119160.0,1.79411809]
[1753196791148,0.1677484,119170.0,119160.0,1.73232293]
[1753196791354,0.2098667,119180.0,119170.0,0.4044969]
[1753196791655,0.2096667,119180.0,119170.0,0.7652969]
[1753196792547,0.64413863,119180.0,119170.0,0.7652969]
[1753196792746,0.64413863,119180.0,119170.0,0.4044969]
[1753196792939,0.64613863,119180.0,119170.0,0.4044969]
[1753196793144,0.71850137,119180.0,119170.0,0.4044969]
[1753196793445,0.3531167,119180.0,119170.0,1.3772569]
[1753196793642,0.3531167,119180.0,119170.0,1.0164569]
[1753196793852,0.2931667,119180.0,119170.0,1.0164569]
[1753196794054,0.2931667,119180.0,119170.0,0.7652969]
[1753196794255,0.2931667,119180.0,119170.0,1.3772169]
[1753196794452,0.2620567,119180.0,119170.0,1.3772169]
[1753196794648,0.2136667,119180.0,119170.0,1.3772169]
[1753196795758,0.1717337,119180.0,119170.0,1.3772169]
[1753196797060,0.23813293,119180.0,119170.0,1.3772169]
[1753196797562,0.6965776,119180.0,119170.0,0.4044969]
[1753196797859,0.7452376,119180.0,119170.0,1.0162969]
[1753196798261,0.32919293,119180.0,119170.0,1.0162969]
[1753196798454,0.7452376,119180.0,119170.0,1.0162969]
[1753196798659,0.32919293,119180.0,119170.0,1.0162969]
[1753196799163,0.32919293,119180.0,119170.0,0.4044969]
[1753196799359,0.32919293,119180.0,119170.0,1.0162569]
[1753196799762,0.7452376,119180.0,119170.0,1.0162569]
[1753196800259,0.7452376,119180.0,119170.0,0.4044969]
[1753196800456,0.8187076,119180.0,119170.0,0.23676]
[1753196800662,0.3998669,119170.0,119160.0,0.28391815]
[1753196800857,0.8149808,119170.0,119160.0,1.03213815]
[1753196801156,0.8149808,119170.0,119160.0,1.39293815]
[1753196801157,0.7415108,119170.0,119160.0,1.39293815]
[1753196801462,0.7415108,119170.0,119160.0,1.03213815]
[1753196801659,1.1023108,119170.0,119160.0,1.03213815]
[1753196802063,1.1023108,119170.0,119160.0,0.42045815]
[1753196802260,0.8149808,119170.0,119160.0,1.03213815]
[1753196802560,0.7415108,119170.0,119160.0,1.03213815]
[1753196802855,0.7415108,119170.0,119160.0,1.013741]
[1753196803062,0.7425108,119170.0,119160.0,1.013741]
[1753196803259,0.72450157,119170.0,119160.0,1.013741]
[1753196804756,0.72450157,119170.0,119160.0,1.374541]
[1753196804957,0.001,119170.0,119160.0,1.374541]
[1753196805358,0.1687369,119170.0,119160.0,1.374541]
[1753196805958,0.2164269,119170.0,119160.0,1.374541]
[1753196806858,0.1687369,119170.0,119160.0,1.374541]
[1753196808063,0.2164269,119170.0,119160.0,1.374541]
[1753196809657,0.2480769,119170.0,119160.0,1.44094264]
[1753196811163,0.72450157,119170.0,119160.0,1.08014264]
[1753196811364,0.81691157,119170.0,119160.0,1.08014264]
[1753196812569,0.79797157,119170.0,119160.0,1.44094264]
[1753196815167,0.73702529,119170.0,119160.0,1.44094264]
[1753196815364,0.75596529,119170.0,119160.0,1.44094264]
[1753196815964,1.11676529,119170.0,119160.0,1.08014274]
[1753196816164,0.75596529,119170.0,119160.0,1.08014274]
[1753196816967,1.11676529,119170.0,119160.0,1.03141274]
[1753196817265,1.47186368,119170.0,119160.0,0.06640164]
[1753196817471,1.88969568,119170.0,119160.0,0.61124]
[1753196818058,0.167751,119160.0,119150.0,0.69829]
[1753196818260,1.09683939,119160.0,119150.0,1.0239651]
[1753196818568,1.02336939,119160.0,119150.0,1.09133475]
[1753196818962,0.258481,119160.0,119150.0,1.09133475]
[1753196819168,0.247091,119160.0,119150.0,1.45213475]
[1753196819669,0.258481,119160.0,119150.0,1.45213475]
[1753196819871,0.72361989,119160.0,119150.0,1.45213475]
[1753196820066,1.08441989,119160.0,119150.0,1.09133475]
[1753196820269,1.17682989,119160.0,119150.0,0.76557965]
[1753196820470,1.17682989,119160.0,119150.0,0.68913965]
[1753196820967,0.2787492,119140.0,119130.0,0.09870653]
[1753196821265,0.81605809,119140.0,119130.0,0.9344533]
[1753196821467,1.17685809,119140.0,119130.0,0.76666]
[1753196821965,1.17685809,119140.0,119130.0,0.9645332]
[1753196822165,1.15791809,119140.0,119130.0,1.0152632]
[1753196822366,1.15791809,119140.0,119130.0,1.0192632]
[1753196822770,1.15791809,119140.0,119130.0,1.08781477]
[1753196822967,0.0002,119150.0,119140.0,0.3320292]
[1753196823271,0.167959,119160.0,119150.0,0.4021151]
[1753196823470,0.35858245,119170.0,119160.0,0.380731]
[1753196823660,0.77453134,119170.0,119160.0,0.762901]
[1753196823972,0.18487285,119170.0,119160.0,0.762901]
[1753196824966,0.18487285,119170.0,119160.0,0.402101]
[1753196825172,1.10154174,119170.0,119160.0,1.0131811]
[1753196825376,0.83315174,119170.0,119160.0,0.9644511]
[1753196825571,0.83315174,119170.0,119160.0,0.7967]
[1753196825770,0.83315174,119170.0,119160.0,0.9644511]
[1753196826171,0.83315174,119170.0,119160.0,1.0131811]
[1753196826373,0.83415174,119170.0,119160.0,1.04291011]
[1753196826972,1.19495174,119170.0,119160.0,0.82642901]
[1753196827168,1.19495174,119170.0,119160.0,0.84878884]
[1753196827676,0.83415174,119170.0,119160.0,1.01653944]
[1753196827867,0.83415174,119170.0,119160.0,1.06526944]
[1753196828067,1.19495174,119170.0,119160.0,0.89751884]
[1753196828271,1.19495174,119170.0,119160.0,0.87515901]
[1753196828466,0.83415174,119170.0,119160.0,1.04290951]
[1753196829271,1.15887589,119170.0,119160.0,1.04290951]
[1753196829475,0.72460589,119170.0,119160.0,1.04290951]
[1753196831576,0.308457,119170.0,119160.0,1.04290951]
[1753196831777,0.72460589,119170.0,119160.0,1.04290951]
[1753196831978,0.72460589,119170.0,119160.0,1.40370951]
[1753196832174,0.72460589,119170.0,119160.0,1.04290951]
[1753196832979,0.58488589,119170.0,119160.0,1.40370951]
[1753196833375,0.67573589,119170.0,119160.0,1.04290951]
[1753196833777,0.72590589,119170.0,119160.0,1.04290951]
[1753196833971,0.67573589,119170.0,119160.0,1.04290951]
[1753196834679,0.72590589,119170.0,119160.0,1.04290951]
[1753196835076,0.72590589,119170.0,119160.0,1.04250951]
[1753196836574,0.72590589,119170.0,119160.0,0.43182951]
[1753196836881,0.72590589,119170.0,119160.0,1.04246951]
[1753196837982,0.72590589,119170.0,119160.0,1.06477879]
[1753196838181,0.72590589,119170.0,119160.0,1.04246951]
[1753196839679,0.72590589,119170.0,119160.0,1.40326951]
[1753196839878,0.72590589,119170.0,119160.0,1.04246951]
[1753196843280,0.66486133,119170.0,119160.0,1.04246951]
[1753196843480,0.66486133,119170.0,119160.0,0.87471901]
[1753196843681,0.73587133,119170.0,119160.0,1.04246951]
[1753196843883,0.66486133,119170.0,119160.0,1.04246951]
[1753196846177,0.309757,119170.0,119160.0,1.04246951]
[1753196846577,0.60401133,119170.0,119160.0,1.40326951]
[1753196846879,0.001,119170.0,119160.0,1.41174718]
[1753196847183,0.001,119170.0,119160.0,1.81144502]
[1753196847373,0.001,119170.0,119160.0,1.78171601]
[1753196847581,0.0002,119180.0,119170.0,0.4004465]
[1753196847777,0.215769,119190.0,119180.0,0.4004324]
[1753196848080,0.167719,119190.0,119180.0,1.74873391]
[1753196848281,0.167719,119190.0,119180.0,1.39362958]
[1753196849683,0.63148978,119190.0,119180.0,1.39362958]
[1753196849879,0.66380978,119190.0,119180.0,1.39362958]
[1753196850086,0.72465978,119190.0,119180.0,1.39362958]
[1753196850384,0.72465978,119190.0,119180.0,1.39358958]
[1753196850587,0.72765978,119190.0,119180.0,1.39358958]
[1753196850781,1.17641978,119190.0,119180.0,0.72957718]
[1753196850983,1.17641978,119190.0,119180.0,0.60992]
[1753196852076,0.2502123,119180.0,119170.0,0.13260718]
[1753196852281,0.79394308,119180.0,119170.0,0.86494718]
[1753196852484,0.79394308,119180.0,119170.0,0.25502718]
[1753196852686,1.15474308,119180.0,119170.0,0.86486718]
[1753196853092,0.79394308,119180.0,119170.0,0.86486718]
[1753196853284,1.15774308,119180.0,119170.0,0.86486718]
[1753196853485,1.17642308,119180.0,119170.0,0.86486718]
[1753196854490,1.15774308,119180.0,119170.0,0.86486718]
[1753196854990,1.17642308,119180.0,119170.0,0.86486718]
[1753196855190,1.17642308,119180.0,119170.0,0.89462539]
[1753196856195,1.17642308,119180.0,119170.0,0.86486718]
[1753196857089,1.17642308,119180.0,119170.0,0.81783718]
[1753196857293,0.7605023,119180.0,119170.0,0.81783718]
[1753196857483,1.17642308,119180.0,119170.0,0.81783718]
[1753196858196,0.7605023,119180.0,119170.0,0.81783718]
[1753196858495,1.17642308,119180.0,119170.0,0.81783718]
[1753196859397,1.17642308,119180.0,119170.0,0.86607718]
[1753196859691,1.15774308,119180.0,119170.0,1.03381368]
[1753196859893,1.15774308,119180.0,119170.0,0.86607718]
[1753196860088,0.72766308,119180.0,119170.0,0.86607718]
[1753196860490,0.72766308,119180.0,119170.0,1.03381368]
[1753196860794,0.71627308,119180.0,119170.0,0.86607718]
[1753196860998,1.17429308,119180.0,119170.0,0.20799718]
[1753196861293,1.17429308,119180.0,119170.0,0.81747718]
[1753196861895,1.17429308,119180.0,119170.0,0.86571718]
[1753196862795,1.17429308,119180.0,119170.0,0.81747718]
[1753196863595,0.6899523,119180.0,119170.0,0.86571718]
[1753196863786,0.1707223,119180.0,119170.0,1.05214816]
[1753196863993,0.1707223,119180.0,119170.0,1.42038919]
[1753196864295,0.003,119180.0,119170.0,1.42038919]
[1753196864491,0.003,119180.0,119170.0,1.83630997]
[1753196864690,0.0002,119190.0,119180.0,0.3921724]
[1753196864886,0.1679025,119200.0,119190.0,0.3921584]
[1753196865092,0.3748884,119210.0,119200.0,0.3921443]
[1753196865294,0.3746884,119210.0,119200.0,0.7529443]
[1753196865489,0.3746884,119210.0,119200.0,0.7613277]
[1753196865689,0.3746884,119210.0,119200.0,0.7529443]
[1753196865894,0.79060918,119210.0,119200.0,0.7529443]
[1753196866090,0.85044918,119210.0,119200.0,0.3921443]
[1753196866293,1.30099918,119210.0,119200.0,0.15656353]
[1753196866494,1.30399918,119210.0,119200.0,0.15656353]
[1753196866898,1.30399918,119210.0,119200.0,0.16667353]
[1753196867298,1.30399918,119210.0,119200.0,0.77587353]
[1753196868289,1.30399918,119210.0,119200.0,1.06737773]
[1753196868600,0.94319918,119210.0,119200.0,1.06737773]
[1753196868900,0.2938431,119210.0,119200.0,1.06737773]
[1753196869099,0.2610731,119210.0,119200.0,1.06737773]
[1753196869802,0.1706912,119210.0,119200.0,1.42817773]
[1753196870001,0.003,119210.0,119200.0,1.42817773]
[1753196871204,0.1706802,119210.0,119200.0,1.42817773]
[1753196871401,0.003,119210.0,119200.0,1.42817773]
[1753196871597,0.003,119210.0,119200.0,1.48030068]
[1753196871801,0.003,119210.0,119200.0,1.48027073]
[1753196872203,0.003,119210.0,119200.0,1.45051252]
[1753196872405,0.1706802,119210.0,119200.0,1.45051252]
[1753196872600,0.1686802,119210.0,119200.0,1.45131252]
[1753196872904,0.2171402,119210.0,119200.0,1.45131252]
[1753196874798,0.2161402,119210.0,119200.0,1.45131252]
[1753196875500,0.1676801,119210.0,119200.0,1.45131252]
[1753196875701,0.77646732,119220.0,119210.0,0.2533601]
[1753196875906,0.77626732,119220.0,119210.0,0.3921301]
[1753196876108,0.82572732,119220.0,119210.0,1.3618501]
[1753196876711,0.82572732,119220.0,119210.0,1.38418489]
[1753196876898,0.40980654,119220.0,119210.0,1.38418489]
[1753196877306,0.40980654,119220.0,119210.0,1.39252378]
[1753196877504,0.41080654,119220.0,119210.0,1.39252378]
[1753196878011,0.41080654,119220.0,119210.0,1.38406489]
[1753196878204,0.3935835,119220.0,119210.0,1.38406489]
[1753196878404,0.1686773,119220.0,119210.0,1.79998567]
[1753196878604,0.1686773,119220.0,119210.0,1.80740909]
[1753196878807,0.1686773,119220.0,119210.0,1.39148831]
[1753196879212,0.1686773,119220.0,119210.0,1.38402328]
[1753196880114,0.001,119220.0,119210.0,1.79994406]
[1753196880315,0.168666,119220.0,119210.0,0.77522328]
[1753196880510,1.19292321,119220.0,119210.0,0.09193318]
[1753196880713,0.3985001,119210.0,119200.0,0.06603353]
[1753196880911,1.17522088,119210.0,119200.0,0.02229318]
[1753196881116,0.3985142,119200.0,119190.0,0.12293318]
[1753196881311,1.17523498,119200.0,119190.0,0.18975957]
[1753196881504,0.7593142,119200.0,119190.0,0.79839957]
[1753196881715,1.17523498,119200.0,119190.0,0.77610639]
[1753196881914,0.7593142,119200.0,119190.0,0.77610639]
[1753196882214,1.17523498,119200.0,119190.0,0.82123639]
[1753196882416,1.17523498,119200.0,119190.0,0.98894459]
[1753196882613,1.17523498,119200.0,119190.0,0.82123639]
[1753196883209,1.17523498,119200.0,119190.0,0.75521639]
[1753196883916,1.17523498,119200.0,119190.0,0.75621639]
[1753196884115,0.7593142,119200.0,119190.0,0.75621639]
[1753196884318,1.17523498,119200.0,119190.0,0.82223639]
[1753196884615,1.17523498,119200.0,119190.0,0.90091639]
[1753196884816,1.08548498,119200.0,119190.0,1.06862449]
[1753196885020,1.08548498,119200.0,119190.0,0.90091639]
[1753196885316,0.72468498,119200.0,119190.0,1.06862449]
[1753196885509,0.67522498,119200.0,119190.0,1.07062449]
[1753196885910,0.67522498,119200.0,119190.0,1.09291767]
[1753196886619,0.1676942,119200.0,119190.0,1.09291767]
[1753196886817,0.1676942,119200.0,119190.0,0.48427767]
[1753196887218,0.1676942,119200.0,119190.0,1.09283767]
[1753196887612,0.2161542,119200.0,119190.0,1.09283767]
[1753196889321,0.2593042,119200.0,119190.0,1.09283767]
[1753196891523,0.2593042,119200.0,119190.0,0.48427767]
[1753196891718,0.2593042,119200.0,119190.0,1.09275767]
[1753196892119,0.67522498,119200.0,119190.0,1.09275767]
[1753196892320,0.72066498,119200.0,119190.0,1.09275767]
[1753196892521,1.16785498,119200.0,119190.0,0.17921]
[1753196892717,1.16785498,119200.0,119190.0,0.80997917]
[1753196892921,1.16785498,119200.0,119190.0,0.77953917]
[1753196893321,1.16785498,119200.0,119190.0,0.75721]
[1753196894427,0.7519342,119200.0,119190.0,0.75721]
[1753196894622,1.16785498,119200.0,119190.0,0.75721]
[1753196897026,1.16785498,119200.0,119190.0,0.9249182]
[1753196897232,0.3047442,119200.0,119190.0,1.0015582]
[1753196897432,0.2593042,119200.0,119190.0,1.03131641]
[1753196898233,0.2489242,119200.0,119190.0,1.02377975]
[1753196899634,0.2489242,119200.0,119190.0,1.02577975]
[1753196901634,0.66484498,119200.0,119190.0,1.02577975]
[1753196901834,0.66484498,119200.0,119190.0,0.85807155]
[1753196901835,0.78687498,119200.0,119190.0,0.85807155]
[1753196902232,0.78687498,119200.0,119190.0,0.27950976]
[1753196902439,0.78687498,119200.0,119190.0,1.02573975]
[1753196902638,0.72096498,119200.0,119190.0,0.44721796]
[1753196902840,0.72096498,119200.0,119190.0,1.05541796]
[1753196903136,0.72096498,119200.0,119190.0,0.88770976]
[1753196903336,1.14767498,119200.0,119190.0,0.85795155]
[1753196903738,1.14767498,119200.0,119190.0,0.24975155]
[1753196904038,1.14767498,119200.0,119190.0,0.85791155]
[1753196904238,0.78687498,119200.0,119190.0,1.02561975]
[1753196904537,0.78687498,119200.0,119190.0,1.02461975]
[1753196905337,0.72096498,119200.0,119190.0,1.02461975]
[1753196905537,0.72096498,119200.0,119190.0,1.02261975]
[1753196906528,0.72096498,119200.0,119190.0,0.85391155]
[1753196906733,1.08176498,119200.0,119190.0,1.02261965]
[1753196907136,1.08176498,119200.0,119190.0,0.44421786]
[1753196907335,1.08176498,119200.0,119190.0,1.02995631]
[1753196907535,1.08176498,119200.0,119190.0,0.86224821]
[1753196907837,1.14767498,119200.0,119190.0,1.02995631]
[1753196908038,0.78687498,119200.0,119190.0,1.02995631]
[1753196908232,0.2722742,119200.0,119190.0,1.02995631]
[1753196908437,0.71841498,119200.0,119190.0,1.02995631]
[1753196909039,0.3024942,119200.0,119190.0,1.02995631]
[1753196909240,0.3024942,119200.0,119190.0,1.04893738]
[1753196909639,0.2570542,119200.0,119190.0,1.04893738]
[1753196912942,0.2463742,119200.0,119190.0,1.04893738]
[1753196913142,0.370527,119210.0,119200.0,0.3892841]
[1753196913345,0.370327,119210.0,119200.0,0.80229892]
[1753196913644,0.370327,119210.0,119200.0,0.44149892]
[1753196914047,0.370327,119210.0,119200.0,1.41013892]
[1753196914543,0.370327,119210.0,119200.0,1.04933892]
[1753196915543,0.370327,119210.0,119200.0,1.41009892]
[1753196915945,0.370327,119210.0,119200.0,1.38772114]
[1753196916346,0.251534,119210.0,119200.0,1.38772114]
[1753196916737,0.26842523,119220.0,119210.0,0.38927]
[1753196916943,0.26822523,119220.0,119210.0,0.75007]
[1753196917143,0.26822523,119220.0,119210.0,0.77990704]
[1753196917740,0.01671643,119220.0,119210.0,1.19684575]
[1753196917945,0.01671643,119220.0,119210.0,1.22668279]
[1753196918141,0.01671643,119220.0,119210.0,1.19784575]
[1753196918340,0.0002,119230.0,119220.0,0.1676659]
[1753196918540,0.2983206,119240.0,119230.0,0.3256518]
[1753196918743,0.2981206,119240.0,119230.0,0.3923618]